[Event "Titled Tuesday Blitz January 03 Early 2023"]
[White "Yeletsky, Ivan"]
[Black "Sarana, Alexey"]
[WhiteFideId "24180327"]
[BlackFideId "24133795"]
[WhiteElo "2494"]
[BlackElo "2685"]
[Result "0-1"]
[Round "06"]
[TimeControl "180+2"]
[Date "2023.01.03"]
[WhiteClock "0:00:01"]
[BlackClock "0:00:12"]

1. e4 {[%clk 0:03:00]}  e5 {[%clk 0:02:59]} 2. Nf3 {[%clk 0:03:01]}  Nc6 {[%clk 0:03:00]} 3. Nc3 {[%clk 0:03:00]}  Nf6 {[%clk 0:02:58]} 4. g3 {[%clk 0:03:01]}  d5 {[%clk 0:02:55]} 5. exd5 {[%clk 0:03:02]}  Nxd5 {[%clk 0:02:56]} 6. Bg2 {[%clk 0:03:03]}  Nxc3 {[%clk 0:02:55]} 7. bxc3 {[%clk 0:03:04]}  Bd6 {[%clk 0:02:55]} 8. O-O {[%clk 0:03:03]}  O-O {[%clk 0:02:56]} 9. d3 {[%clk 0:02:51]}  Rb8 {[%clk 0:02:55]} 10. Ng5 {[%clk 0:02:48]}  Bf5 {[%clk 0:02:51]} 11. Rb1 {[%clk 0:02:45]}  Qd7 {[%clk 0:02:51]} 12. Ne4 {[%clk 0:02:20]}  Be7 {[%clk 0:02:49]} 13. f4 {[%clk 0:02:20]}  b6 {[%clk 0:02:42]} 14. Kh1 {[%clk 0:02:04]}  exf4 {[%clk 0:02:38]} 15. gxf4 {[%clk 0:02:03]}  Nd8 {[%clk 0:02:27]} 16. Ng3 {[%clk 0:02:02]}  Bg4 {[%clk 0:02:26]} 17. Qd2 {[%clk 0:01:58]}  Bd6 {[%clk 0:02:13]} 18. Rg1 {[%clk 0:01:52]}  g6 {[%clk 0:01:53]} 19. Qf2 {[%clk 0:01:38]}  Ne6 {[%clk 0:01:39]} 20. f5 {[%clk 0:01:31]}  Bxg3 {[%clk 0:01:38]} 21. Qxg3 {[%clk 0:01:31]}  Bxf5 {[%clk 0:01:38]} 22. Bh6 {[%clk 0:01:32]}  Rfe8 {[%clk 0:01:35]} 23. Rbf1 {[%clk 0:01:26]}  Ng7 {[%clk 0:01:21]} 24. Qg5 {[%clk 0:01:22]}  Qe6 {[%clk 0:00:55]} 25. c4 {[%clk 0:01:12]}  c6 {[%clk 0:00:55]} 26. Qc1 {[%clk 0:00:56]}  Bh3 {[%clk 0:00:41]} 27. Qb2 {[%clk 0:00:46]}  Bxg2+ {[%clk 0:00:39]} 28. Rxg2 {[%clk 0:00:47]}  Nh5 {[%clk 0:00:39]} 29. Rgf2 {[%clk 0:00:40]}  f6 {[%clk 0:00:19]} 30. Rxf6 {[%clk 0:00:20]}  Nxf6 {[%clk 0:00:18]} 31. Rxf6 {[%clk 0:00:21]}  Qd7 {[%clk 0:00:16]} 32. Rf1 {[%clk 0:00:13]}  Re6 {[%clk 0:00:10]} 33. Qc1 {[%clk 0:00:11]}  Rbe8 {[%clk 0:00:09]} 34. Qd2 {[%clk 0:00:06]}  Qe7 {[%clk 0:00:09]} 35. Bg5 {[%clk 0:00:05]}  Qc5 {[%clk 0:00:08]} 36. Qf4 {[%clk 0:00:03]}  Rf8 {[%clk 0:00:08]} 37. Qxf8+ {[%clk 0:00:02]}  Qxf8 {[%clk 0:00:09]} 38. Rxf8+ {[%clk 0:00:02]}  Kxf8 {[%clk 0:00:10]} 39. Bf4 {[%clk 0:00:03]}  Re1+ {[%clk 0:00:09]} 40. Kg2 {[%clk 0:00:03]}  Re2+ {[%clk 0:00:10]} 41. Kf3 {[%clk 0:00:04]}  Rxc2 {[%clk 0:00:11]} 42. a3 {[%clk 0:00:02]}  Ke7 {[%clk 0:00:10]} 43. Bb8 {[%clk 0:00:01]}  a6 {[%clk 0:00:10]} 44. Bc7 {[%clk 0:00:01]}  b5 {[%clk 0:00:11]} 45. cxb5 {[%clk 0:00:01]}  axb5 {[%clk 0:00:12]} 0-1


[Site "https://www.chess.com"]

[Event "Titled Tuesday Blitz January 03 Early 2023"]
[White "Madaminov, Mukhiddin"]
[Black "Narayanan, Srinath"]
[WhiteFideId "14210703"]
[BlackFideId "5018420"]
[WhiteElo "2422"]
[BlackElo "2559"]
[Result "1-0"]
[Round "06"]
[TimeControl "180+2"]
[Date "2023.01.03"]
[WhiteClock "0:01:16"]
[BlackClock "0:00:58"]

1. d4 {[%clk 0:03:00]}  d5 {[%clk 0:02:58]} 2. Nc3 {[%clk 0:03:01]}  Nf6 {[%clk 0:02:57]} 3. Bf4 {[%clk 0:03:02]}  c5 {[%clk 0:02:57]} 4. e4 {[%clk 0:03:02]}  Nxe4 {[%clk 0:02:56]} 5. Nxe4 {[%clk 0:03:03]}  dxe4 {[%clk 0:02:57]} 6. dxc5 {[%clk 0:03:03]}  Qa5+ {[%clk 0:02:58]} 7. c3 {[%clk 0:03:04]}  Qxc5 {[%clk 0:02:58]} 8. Qa4+ {[%clk 0:03:04]}  Nc6 {[%clk 0:02:58]} 9. Qxe4 {[%clk 0:03:05]}  g6 {[%clk 0:02:59]} 10. Nf3 {[%clk 0:03:05]}  Bg7 {[%clk 0:02:59]} 11. Qe3 {[%clk 0:03:06]}  Qxe3+ {[%clk 0:02:56]} 12. Bxe3 {[%clk 0:03:07]}  O-O {[%clk 0:02:56]} 13. O-O-O {[%clk 0:03:07]}  Be6 {[%clk 0:02:50]} 14. Kb1 {[%clk 0:03:06]}  Rac8 {[%clk 0:02:50]} 15. Be2 {[%clk 0:03:00]}  Rfd8 {[%clk 0:02:49]} 16. Rxd8+ {[%clk 0:02:58]}  Rxd8 {[%clk 0:02:50]} 17. Rd1 {[%clk 0:02:58]}  Rxd1+ {[%clk 0:02:50]} 18. Bxd1 {[%clk 0:02:58]}  Bd5 {[%clk 0:02:51]} 19. Kc2 {[%clk 0:02:56]}  b6 {[%clk 0:02:33]} 20. g3 {[%clk 0:02:52]}  Kf8 {[%clk 0:02:14]} 21. a4 {[%clk 0:02:50]}  Ne5 {[%clk 0:02:11]} 22. Nxe5 {[%clk 0:02:49]}  Bxe5 {[%clk 0:02:12]} 23. Be2 {[%clk 0:02:46]}  Ke8 {[%clk 0:02:11]} 24. b4 {[%clk 0:02:45]}  Kd7 {[%clk 0:02:10]} 25. c4 {[%clk 0:02:44]}  Bc6 {[%clk 0:02:08]} 26. Kb3 {[%clk 0:02:40]}  Kc7 {[%clk 0:02:07]} 27. a5 {[%clk 0:02:35]}  h5 {[%clk 0:02:05]} 28. h4 {[%clk 0:02:31]}  Bd6 {[%clk 0:02:04]} 29. Kc3 {[%clk 0:02:20]}  Be5+ {[%clk 0:01:51]} 30. Bd4 {[%clk 0:02:14]}  Bxd4+ {[%clk 0:01:46]} 31. Kxd4 {[%clk 0:02:15]}  Kd6 {[%clk 0:01:46]} 32. f4 {[%clk 0:02:07]}  Kc7 {[%clk 0:01:39]} 33. axb6+ {[%clk 0:02:04]}  axb6 {[%clk 0:01:40]} 34. Ke5 {[%clk 0:02:03]}  Bd7 {[%clk 0:01:40]} 35. Bd3 {[%clk 0:02:03]}  f6+ {[%clk 0:01:31]} 36. Kd4 {[%clk 0:02:02]}  Be8 {[%clk 0:01:31]} 37. c5 {[%clk 0:01:46]}  Bf7 {[%clk 0:01:25]} 38. Bb5 {[%clk 0:01:43]}  Be6 {[%clk 0:01:22]} 39. Be8 {[%clk 0:01:40]}  Bf5 {[%clk 0:01:22]} 40. Kd5 {[%clk 0:01:40]}  Bc2 {[%clk 0:01:10]} 41. cxb6+ {[%clk 0:01:24]}  Kd8 {[%clk 0:01:06]} 42. b7 {[%clk 0:01:18]}  Bb3+ {[%clk 0:00:58]} 43. Kc6 {[%clk 0:01:16]} 1-0


[Site "https://www.chess.com"]

[Event "Titled Tuesday Blitz January 03 Early 2023"]
[White "Sethuraman, S.P."]
[Black "Pranav, V"]
[WhiteFideId "5021596"]
[BlackFideId "25060783"]
[WhiteElo "2626"]
[BlackElo "2597"]
[Result "0-1"]
[Round "06"]
[TimeControl "180+2"]
[Date "2023.01.03"]
[WhiteClock "0:00:01"]
[BlackClock "0:00:18"]

1. e4 {[%clk 0:03:00]}  Nc6 {[%clk 0:02:58]} 2. Nf3 {[%clk 0:02:59]}  e5 {[%clk 0:02:56]} 3. Bc4 {[%clk 0:02:58]}  Nf6 {[%clk 0:02:56]} 4. d3 {[%clk 0:02:59]}  h6 {[%clk 0:02:56]} 5. c3 {[%clk 0:02:57]}  d6 {[%clk 0:02:56]} 6. a4 {[%clk 0:02:57]}  g6 {[%clk 0:02:57]} 7. Qb3 {[%clk 0:02:56]}  Qe7 {[%clk 0:02:57]} 8. a5 {[%clk 0:02:56]}  a6 {[%clk 0:02:57]} 9. Nbd2 {[%clk 0:02:55]}  Bg7 {[%clk 0:02:57]} 10. Nf1 {[%clk 0:02:55]}  O-O {[%clk 0:02:57]} 11. h3 {[%clk 0:02:48]}  Rb8 {[%clk 0:02:56]} 12. Ng3 {[%clk 0:02:45]}  Be6 {[%clk 0:02:55]} 13. O-O {[%clk 0:02:35]}  Nd7 {[%clk 0:02:53]} 14. Bxe6 {[%clk 0:02:29]}  fxe6 {[%clk 0:02:53]} 15. Qd1 {[%clk 0:02:23]}  Kh7 {[%clk 0:02:53]} 16. Be3 {[%clk 0:02:22]}  d5 {[%clk 0:02:40]} 17. Re1 {[%clk 0:02:20]}  Rbd8 {[%clk 0:02:38]} 18. Qe2 {[%clk 0:02:19]}  d4 {[%clk 0:02:36]} 19. cxd4 {[%clk 0:02:18]}  exd4 {[%clk 0:02:36]} 20. Bd2 {[%clk 0:02:18]}  Nc5 {[%clk 0:02:36]} 21. Ra3 {[%clk 0:02:07]}  e5 {[%clk 0:02:25]} 22. h4 {[%clk 0:02:07]}  Qe8 {[%clk 0:02:13]} 23. h5 {[%clk 0:02:03]}  g5 {[%clk 0:02:09]} 24. Nf5 {[%clk 0:02:01]}  Ne6 {[%clk 0:02:05]} 25. Rb3 {[%clk 0:01:57]}  Nc5 {[%clk 0:02:03]} 26. Ra3 {[%clk 0:01:57]}  Ne6 {[%clk 0:02:03]} 27. g3 {[%clk 0:01:53]}  Bf6 {[%clk 0:01:53]} 28. Rb3 {[%clk 0:01:50]}  Nc5 {[%clk 0:01:48]} 29. Ra3 {[%clk 0:01:50]}  Rb8 {[%clk 0:01:48]} 30. Rc1 {[%clk 0:01:47]}  Ne6 {[%clk 0:01:46]} 31. Nh2 {[%clk 0:01:44]}  Ne7 {[%clk 0:01:44]} 32. Ng4 {[%clk 0:01:43]}  Bg7 {[%clk 0:01:23]} 33. Bb4 {[%clk 0:01:35]}  Rf7 {[%clk 0:00:52]} 34. Bxe7 {[%clk 0:01:27]}  Rxe7 {[%clk 0:00:53]} 35. Nxe7 {[%clk 0:01:20]}  Qxe7 {[%clk 0:00:54]} 36. Rb3 {[%clk 0:01:20]}  Nc5 {[%clk 0:00:52]} 37. Ra3 {[%clk 0:01:19]}  c6 {[%clk 0:00:52]} 38. Kg2 {[%clk 0:01:08]}  Rf8 {[%clk 0:00:51]} 39. Qc2 {[%clk 0:01:00]}  Ne6 {[%clk 0:00:49]} 40. Rb3 {[%clk 0:00:57]}  Qd7 {[%clk 0:00:49]} 41. Qe2 {[%clk 0:00:55]}  Rf7 {[%clk 0:00:47]} 42. Nh2 {[%clk 0:00:51]}  Bf8 {[%clk 0:00:45]} 43. Nf3 {[%clk 0:00:46]}  Bg7 {[%clk 0:00:37]} 44. Nd2 {[%clk 0:00:45]}  Qe7 {[%clk 0:00:29]} 45. Nc4 {[%clk 0:00:44]}  Nc5 {[%clk 0:00:28]} 46. Ra3 {[%clk 0:00:44]}  Ne6 {[%clk 0:00:28]} 47. Raa1 {[%clk 0:00:43]}  Nc5 {[%clk 0:00:28]} 48. Rab1 {[%clk 0:00:42]}  Rf8 {[%clk 0:00:25]} 49. b4 {[%clk 0:00:41]}  Ne6 {[%clk 0:00:25]} 50. Rc2 {[%clk 0:00:38]}  Rf7 {[%clk 0:00:24]} 51. Nb6 {[%clk 0:00:36]}  Nc7 {[%clk 0:00:22]} 52. Na4 {[%clk 0:00:30]}  Nb5 {[%clk 0:00:22]} 53. Qg4 {[%clk 0:00:28]}  Rf8 {[%clk 0:00:19]} 54. Rc5 {[%clk 0:00:23]}  Qf7 {[%clk 0:00:18]} 55. Rc2 {[%clk 0:00:23]}  Na3 {[%clk 0:00:17]} 56. Rbb2 {[%clk 0:00:14]}  Nxc2 {[%clk 0:00:17]} 57. Rxc2 {[%clk 0:00:15]}  Qb3 {[%clk 0:00:18]} 58. Rd2 {[%clk 0:00:01]}  Qxa4 {[%clk 0:00:18]} 0-1


[Site "https://www.chess.com"]

[Event "Titled Tuesday Blitz January 03 Early 2023"]
[White "Sjugirov, Sanan"]
[Black "Sanal, Vahap"]
[WhiteFideId "4189302"]
[BlackFideId "6300545"]
[WhiteElo "2712"]
[BlackElo "2600"]
[Result "0-1"]
[Round "06"]
[TimeControl "180+2"]
[Date "2023.01.03"]
[WhiteClock "0:00:03"]
[BlackClock "0:00:47"]

1. e4 {[%clk 0:03:00]}  d6 {[%clk 0:02:59]} 2. d4 {[%clk 0:03:00]}  Nf6 {[%clk 0:02:59]} 3. Nc3 {[%clk 0:03:01]}  e5 {[%clk 0:03:00]} 4. Nf3 {[%clk 0:03:00]}  Nbd7 {[%clk 0:03:00]} 5. Bc4 {[%clk 0:03:00]}  Be7 {[%clk 0:03:00]} 6. O-O {[%clk 0:03:00]}  O-O {[%clk 0:03:00]} 7. Re1 {[%clk 0:02:59]}  c6 {[%clk 0:03:00]} 8. a4 {[%clk 0:02:58]}  h6 {[%clk 0:03:01]} 9. h3 {[%clk 0:02:55]}  Re8 {[%clk 0:03:00]} 10. Ba2 {[%clk 0:02:53]}  exd4 {[%clk 0:03:00]} 11. Nxd4 {[%clk 0:02:50]}  Bf8 {[%clk 0:02:59]} 12. Bf4 {[%clk 0:02:39]}  Nc5 {[%clk 0:02:58]} 13. Qf3 {[%clk 0:02:37]}  Ne6 {[%clk 0:02:58]} 14. Nxe6 {[%clk 0:02:02]}  Bxe6 {[%clk 0:02:57]} 15. Bxe6 {[%clk 0:02:02]}  Rxe6 {[%clk 0:02:58]} 16. a5 {[%clk 0:02:02]}  Qc7 {[%clk 0:02:53]} 17. Qd3 {[%clk 0:01:26]}  Rae8 {[%clk 0:02:52]} 18. Bh2 {[%clk 0:01:18]}  Qe7 {[%clk 0:02:47]} 19. f3 {[%clk 0:01:13]}  d5 {[%clk 0:02:43]} 20. e5 {[%clk 0:01:13]}  Nd7 {[%clk 0:02:42]} 21. f4 {[%clk 0:01:14]}  f6 {[%clk 0:02:39]} 22. f5 {[%clk 0:00:58]}  Qc5+ {[%clk 0:02:36]} 23. Kh1 {[%clk 0:00:57]}  Nxe5 {[%clk 0:02:37]} 24. Qf1 {[%clk 0:00:40]}  R6e7 {[%clk 0:02:33]} 25. a6 {[%clk 0:00:40]}  b6 {[%clk 0:02:32]} 26. Bg1 {[%clk 0:00:40]}  Qd6 {[%clk 0:02:32]} 27. b3 {[%clk 0:00:38]}  Nd7 {[%clk 0:02:26]} 28. Rxe7 {[%clk 0:00:34]}  Rxe7 {[%clk 0:02:22]} 29. Bh2 {[%clk 0:00:35]}  Qc5 {[%clk 0:02:20]} 30. Ne2 {[%clk 0:00:30]}  Qxc2 {[%clk 0:01:52]} 31. Nd4 {[%clk 0:00:30]}  Qc3 {[%clk 0:01:52]} 32. Ne6 {[%clk 0:00:21]}  Re8 {[%clk 0:01:45]} 33. Rc1 {[%clk 0:00:19]}  Qxb3 {[%clk 0:01:45]} 34. Rxc6 {[%clk 0:00:20]}  Nc5 {[%clk 0:01:45]} 35. Nxf8 {[%clk 0:00:11]}  Kxf8 {[%clk 0:01:43]} 36. Rc7 {[%clk 0:00:11]}  Kg8 {[%clk 0:01:40]} 37. Rxa7 {[%clk 0:00:11]}  Qc3 {[%clk 0:01:34]} 38. Bg1 {[%clk 0:00:09]}  Re1 {[%clk 0:01:26]} 39. Qf4 {[%clk 0:00:09]}  Qa1 {[%clk 0:01:03]} 40. Kh2 {[%clk 0:00:09]}  Rxg1 {[%clk 0:00:53]} 41. Rxg7+ {[%clk 0:00:04]}  Kxg7 {[%clk 0:00:53]} 42. Qc7+ {[%clk 0:00:04]}  Kf8 {[%clk 0:00:47]} 43. Qd8+ {[%clk 0:00:04]}  Kf7 {[%clk 0:00:47]} 44. Qc7+ {[%clk 0:00:04]}  Ke8 {[%clk 0:00:47]} 45. Qc6+ {[%clk 0:00:02]}  Ke7 {[%clk 0:00:48]} 46. a7 {[%clk 0:00:02]}  Rh1+ {[%clk 0:00:47]} 47. Kg3 {[%clk 0:00:03]}  Qe5+ {[%clk 0:00:47]} 0-1


[Site "https://www.chess.com"]

[Event "Titled Tuesday Blitz January 03 Early 2023"]
[White "Oparin, Grigoriy"]
[Black "Bryakin, Mikhail"]
[WhiteFideId "24125890"]
[BlackFideId "4165314"]
[WhiteElo "2667"]
[BlackElo "2455"]
[Result "1/2-1/2"]
[Round "06"]
[TimeControl "180+2"]
[Date "2023.01.03"]
[WhiteClock "0:00:02"]
[BlackClock "0:01:17"]

1. g3 {[%clk 0:02:57]}  g6 {[%clk 0:02:59]} 2. Bg2 {[%clk 0:02:57]}  Bg7 {[%clk 0:02:59]} 3. c4 {[%clk 0:02:58]}  c5 {[%clk 0:02:59]} 4. Nc3 {[%clk 0:02:58]}  Nc6 {[%clk 0:03:00]} 5. b3 {[%clk 0:02:58]}  Nf6 {[%clk 0:02:59]} 6. Bb2 {[%clk 0:02:57]}  O-O {[%clk 0:03:00]} 7. e3 {[%clk 0:02:57]}  e6 {[%clk 0:02:57]} 8. Nge2 {[%clk 0:02:56]}  b6 {[%clk 0:02:56]} 9. O-O {[%clk 0:02:56]}  Bb7 {[%clk 0:02:56]} 10. d4 {[%clk 0:02:56]}  cxd4 {[%clk 0:02:55]} 11. Nxd4 {[%clk 0:02:55]}  d5 {[%clk 0:02:54]} 12. Nxc6 {[%clk 0:02:45]}  Bxc6 {[%clk 0:02:54]} 13. Rc1 {[%clk 0:02:44]}  Rc8 {[%clk 0:02:52]} 14. Ba3 {[%clk 0:02:08]}  Re8 {[%clk 0:02:47]} 15. cxd5 {[%clk 0:02:08]}  Nxd5 {[%clk 0:02:36]} 16. Nxd5 {[%clk 0:02:08]}  exd5 {[%clk 0:02:27]} 17. Qd2 {[%clk 0:02:03]}  Qd7 {[%clk 0:02:19]} 18. Rfd1 {[%clk 0:02:02]}  d4 {[%clk 0:02:15]} 19. Bxc6 {[%clk 0:01:09]}  Rxc6 {[%clk 0:02:15]} 20. Rxc6 {[%clk 0:01:10]}  Qxc6 {[%clk 0:02:16]} 21. exd4 {[%clk 0:01:11]}  Qd5 {[%clk 0:02:11]} 22. Qd3 {[%clk 0:01:06]}  Rd8 {[%clk 0:02:06]} 23. Bb2 {[%clk 0:01:06]}  h5 {[%clk 0:02:04]} 24. h4 {[%clk 0:01:05]}  Bf6 {[%clk 0:02:02]} 25. Kh2 {[%clk 0:00:49]}  Re8 {[%clk 0:01:58]} 26. Bc3 {[%clk 0:00:46]}  b5 {[%clk 0:01:56]} 27. Bb2 {[%clk 0:00:43]}  a6 {[%clk 0:01:56]} 28. Bc1 {[%clk 0:00:43]}  Rd8 {[%clk 0:01:51]} 29. Be3 {[%clk 0:00:42]}  Rc8 {[%clk 0:01:48]} 30. Bf4 {[%clk 0:00:34]}  Re8 {[%clk 0:01:45]} 31. Kg1 {[%clk 0:00:28]}  Rc8 {[%clk 0:01:43]} 32. Qe3 {[%clk 0:00:20]}  Rd8 {[%clk 0:01:40]} 33. Bg5 {[%clk 0:00:17]}  Rd6 {[%clk 0:01:28]} 34. Bxf6 {[%clk 0:00:17]}  Rxf6 {[%clk 0:01:29]} 35. Qe8+ {[%clk 0:00:11]}  Kh7 {[%clk 0:01:27]} 36. Qe5 {[%clk 0:00:11]}  Qf3 {[%clk 0:01:28]} 37. Rf1 {[%clk 0:00:10]}  Re6 {[%clk 0:01:25]} 38. Qc7 {[%clk 0:00:09]}  Re2 {[%clk 0:01:19]} 39. d5 {[%clk 0:00:04]}  Qxd5 {[%clk 0:01:19]} 40. a4 {[%clk 0:00:02]}  Qxb3 {[%clk 0:01:17]} 1/2-1/2


[Site "https://www.chess.com"]

[Event "Titled Tuesday Blitz January 03 Early 2023"]
[White "Bortnyk, Mykola"]
[Black "Donchenko, Alexander"]
[WhiteFideId "14120836"]
[BlackFideId "24603295"]
[WhiteElo "2425"]
[BlackElo "2669"]
[Result "1-0"]
[Round "06"]
[TimeControl "180+2"]
[Date "2023.01.03"]
[WhiteClock "0:00:27"]
[BlackClock "0:00:04"]

1. e4 {[%clk 0:03:00]}  c6 {[%clk 0:03:00]} 2. d4 {[%clk 0:03:00]}  d5 {[%clk 0:03:01]} 3. Nc3 {[%clk 0:03:00]}  dxe4 {[%clk 0:03:01]} 4. Nxe4 {[%clk 0:03:01]}  Nf6 {[%clk 0:03:02]} 5. Nxf6+ {[%clk 0:03:02]}  exf6 {[%clk 0:03:03]} 6. Bc4 {[%clk 0:03:02]}  Bd6 {[%clk 0:03:02]} 7. Qe2+ {[%clk 0:03:03]}  Qe7 {[%clk 0:03:03]} 8. Qxe7+ {[%clk 0:03:03]}  Kxe7 {[%clk 0:03:03]} 9. Bd3 {[%clk 0:03:03]}  Rd8 {[%clk 0:03:01]} 10. Ne2 {[%clk 0:02:58]}  Kf8 {[%clk 0:03:00]} 11. Be3 {[%clk 0:02:54]}  h6 {[%clk 0:02:54]} 12. O-O-O {[%clk 0:02:54]}  Nd7 {[%clk 0:02:52]} 13. c4 {[%clk 0:02:51]}  a5 {[%clk 0:02:50]} 14. Nc3 {[%clk 0:02:46]}  h5 {[%clk 0:02:43]} 15. h3 {[%clk 0:02:42]}  g5 {[%clk 0:02:32]} 16. h4 {[%clk 0:02:34]}  g4 {[%clk 0:02:30]} 17. f3 {[%clk 0:02:34]}  Re8 {[%clk 0:02:23]} 18. Ne4 {[%clk 0:02:28]}  Bc7 {[%clk 0:02:12]} 19. Bh6+ {[%clk 0:02:25]}  Kg8 {[%clk 0:02:10]} 20. Rhe1 {[%clk 0:02:21]}  f5 {[%clk 0:02:05]} 21. Ng5 {[%clk 0:01:59]}  Nf6 {[%clk 0:01:53]} 22. fxg4 {[%clk 0:01:59]}  hxg4 {[%clk 0:01:46]} 23. Rxe8+ {[%clk 0:01:58]}  Nxe8 {[%clk 0:01:47]} 24. Re1 {[%clk 0:01:58]}  Bf4+ {[%clk 0:01:20]} 25. Kc2 {[%clk 0:01:59]}  Nd6 {[%clk 0:01:16]} 26. c5 {[%clk 0:01:27]}  Ne4 {[%clk 0:01:15]} 27. Nxe4 {[%clk 0:01:15]}  fxe4 {[%clk 0:01:12]} 28. Bxf4 {[%clk 0:01:13]}  exd3+ {[%clk 0:01:12]} 29. Kxd3 {[%clk 0:01:14]}  Be6 {[%clk 0:01:12]} 30. Re5 {[%clk 0:01:09]}  Kg7 {[%clk 0:01:05]} 31. Rg5+ {[%clk 0:01:08]}  Kf6 {[%clk 0:01:04]} 32. Be5+ {[%clk 0:01:08]}  Ke7 {[%clk 0:01:05]} 33. h5 {[%clk 0:01:06]}  f6 {[%clk 0:00:58]} 34. Rg7+ {[%clk 0:01:06]}  Bf7 {[%clk 0:00:59]} 35. Bd6+ {[%clk 0:01:04]}  Ke6 {[%clk 0:00:59]} 36. h6 {[%clk 0:01:04]}  Rh8 {[%clk 0:00:55]} 37. Bf4 {[%clk 0:01:02]}  Ke7 {[%clk 0:00:48]} 38. Rxg4 {[%clk 0:00:59]}  Bxa2 {[%clk 0:00:45]} 39. Rh4 {[%clk 0:00:51]}  a4 {[%clk 0:00:41]} 40. g3 {[%clk 0:00:48]}  Ke6 {[%clk 0:00:37]} 41. Rh2 {[%clk 0:00:46]}  Rh7 {[%clk 0:00:34]} 42. g4 {[%clk 0:00:46]}  Bd5 {[%clk 0:00:31]} 43. Re2+ {[%clk 0:00:39]}  Kf7 {[%clk 0:00:32]} 44. g5 {[%clk 0:00:38]}  fxg5 {[%clk 0:00:29]} 45. Bxg5 {[%clk 0:00:39]}  Kg6 {[%clk 0:00:30]} 46. Be3 {[%clk 0:00:38]}  Re7 {[%clk 0:00:27]} 47. Re1 {[%clk 0:00:34]}  Be4+ {[%clk 0:00:26]} 48. Kd2 {[%clk 0:00:33]}  Bd5 {[%clk 0:00:25]} 49. Ra1 {[%clk 0:00:33]}  Bb3 {[%clk 0:00:24]} 50. Rg1+ {[%clk 0:00:34]}  Kh7 {[%clk 0:00:25]} 51. Rg5 {[%clk 0:00:32]}  Rf7 {[%clk 0:00:24]} 52. Re5 {[%clk 0:00:32]}  Rf3 {[%clk 0:00:22]} 53. Kc3 {[%clk 0:00:29]}  Rf7 {[%clk 0:00:21]} 54. Kb4 {[%clk 0:00:29]}  Rf6 {[%clk 0:00:19]} 55. Ka5 {[%clk 0:00:29]}  Re6 {[%clk 0:00:13]} 56. Kb6 {[%clk 0:00:30]}  Rxe5 {[%clk 0:00:06]} 57. dxe5 {[%clk 0:00:30]}  Kg6 {[%clk 0:00:05]} 58. Kxb7 {[%clk 0:00:30]}  Bd5 {[%clk 0:00:06]} 59. Kc7 {[%clk 0:00:30]}  Kf7 {[%clk 0:00:04]} 60. Kd7 {[%clk 0:00:27]}  Be6+ {[%clk 0:00:04]} 61. Kxc6 {[%clk 0:00:27]} 1-0


[Site "https://www.chess.com"]

[Event "Titled Tuesday Blitz January 03 Early 2023"]
[White "Svane, Rasmus"]
[Black "Kravtsiv, Martyn"]
[WhiteFideId "4657101"]
[BlackFideId "14113147"]
[WhiteElo "2623"]
[BlackElo "2598"]
[Result "1/2-1/2"]
[Round "06"]
[TimeControl "180+2"]
[Date "2023.01.03"]
[WhiteClock "0:00:03"]
[BlackClock "0:00:11"]

1. Nf3 {[%clk 0:03:00]}  d5 {[%clk 0:02:59]} 2. g3 {[%clk 0:03:01]}  Nf6 {[%clk 0:03:00]} 3. Bg2 {[%clk 0:03:02]}  e6 {[%clk 0:03:00]} 4. O-O {[%clk 0:03:02]}  Be7 {[%clk 0:03:00]} 5. c4 {[%clk 0:03:02]}  O-O {[%clk 0:03:00]} 6. b3 {[%clk 0:03:02]}  d4 {[%clk 0:02:59]} 7. e3 {[%clk 0:03:02]}  c5 {[%clk 0:03:00]} 8. Ne5 {[%clk 0:03:03]}  Qc7 {[%clk 0:02:50]} 9. f4 {[%clk 0:03:03]}  Nbd7 {[%clk 0:02:49]} 10. Nd3 {[%clk 0:02:47]}  e5 {[%clk 0:02:43]} 11. Bb2 {[%clk 0:02:47]}  Rd8 {[%clk 0:02:37]} 12. Na3 {[%clk 0:02:36]}  a6 {[%clk 0:02:34]} 13. Nc2 {[%clk 0:02:35]}  Bd6 {[%clk 0:02:17]} 14. fxe5 {[%clk 0:02:20]}  Nxe5 {[%clk 0:02:16]} 15. Nxe5 {[%clk 0:02:21]}  Bxe5 {[%clk 0:02:16]} 16. exd4 {[%clk 0:02:21]}  cxd4 {[%clk 0:02:15]} 17. Qf3 {[%clk 0:02:19]}  Rb8 {[%clk 0:02:01]} 18. Rae1 {[%clk 0:02:15]}  b5 {[%clk 0:01:54]} 19. d3 {[%clk 0:01:53]}  bxc4 {[%clk 0:01:22]} 20. dxc4 {[%clk 0:01:54]}  Be6 {[%clk 0:01:17]} 21. Qe2 {[%clk 0:01:37]}  Ng4 {[%clk 0:01:12]} 22. Kh1 {[%clk 0:00:21]}  h5 {[%clk 0:00:45]} 23. Ba1 {[%clk 0:00:16]}  Bf6 {[%clk 0:00:34]} 24. Qd3 {[%clk 0:00:15]}  Ne5 {[%clk 0:00:32]} 25. Qe4 {[%clk 0:00:16]}  d3 {[%clk 0:00:30]} 26. Bxe5 {[%clk 0:00:15]}  Bxe5 {[%clk 0:00:29]} 27. Qxe5 {[%clk 0:00:16]}  Qxe5 {[%clk 0:00:28]} 28. Rxe5 {[%clk 0:00:17]}  dxc2 {[%clk 0:00:28]} 29. Re2 {[%clk 0:00:10]}  Bf5 {[%clk 0:00:19]} 30. Ree1 {[%clk 0:00:05]}  Bg6 {[%clk 0:00:16]} 31. Rc1 {[%clk 0:00:05]}  Rd2 {[%clk 0:00:15]} 32. c5 {[%clk 0:00:05]}  Rc8 {[%clk 0:00:15]} 33. c6 {[%clk 0:00:05]}  Kf8 {[%clk 0:00:15]} 34. Kg1 {[%clk 0:00:05]}  Rcd8 {[%clk 0:00:15]} 35. Bf3 {[%clk 0:00:03]}  Ke7 {[%clk 0:00:14]} 36. Rf2 {[%clk 0:00:03]}  R8d6 {[%clk 0:00:13]} 37. Rxd2 {[%clk 0:00:02]}  Rxd2 {[%clk 0:00:12]} 38. Kf1 {[%clk 0:00:02]}  Kd6 {[%clk 0:00:12]} 39. Ke1 {[%clk 0:00:03]}  Rxh2 {[%clk 0:00:12]} 40. Be2 {[%clk 0:00:03]}  Rh1+ {[%clk 0:00:11]} 41. Kd2 {[%clk 0:00:03]}  Rxc1 {[%clk 0:00:12]} 42. Kxc1 {[%clk 0:00:04]}  Kxc6 {[%clk 0:00:12]} 43. Bxa6 {[%clk 0:00:04]}  Kc5 {[%clk 0:00:11]} 44. a3 {[%clk 0:00:04]}  Be4 {[%clk 0:00:11]} 45. Kd2 {[%clk 0:00:05]}  g5 {[%clk 0:00:11]} 46. b4+ {[%clk 0:00:05]}  Kb6 {[%clk 0:00:11]} 47. Bf1 {[%clk 0:00:03]}  h4 {[%clk 0:00:11]} 48. gxh4 {[%clk 0:00:04]}  gxh4 {[%clk 0:00:12]} 49. a4 {[%clk 0:00:04]}  Bf5 {[%clk 0:00:12]} 50. a5+ {[%clk 0:00:05]}  Kc7 {[%clk 0:00:12]} 51. b5 {[%clk 0:00:04]}  h3 {[%clk 0:00:13]} 52. b6+ {[%clk 0:00:04]}  Kb7 {[%clk 0:00:12]} 53. Kc1 {[%clk 0:00:03]}  Be6 {[%clk 0:00:11]} 54. Kd2 {[%clk 0:00:03]}  Bf5 {[%clk 0:00:11]} 55. Kc1 {[%clk 0:00:03]}  Kc6 {[%clk 0:00:11]} 56. Kd2 {[%clk 0:00:03]}  Kb7 {[%clk 0:00:11]} 1/2-1/2


[Site "https://www.chess.com"]